bitfinex/quotes_BTCUSD_20250526
["timestamp","ask_amount","ask_price","bid_price","bid_amount"]
[1748244655388,0.66833984,109790.0,109780.0,0.55561859]
[1748244655606,0.66833984,109790.0,109780.0,0.18172402]
[1748244656228,0.66833984,109790.0,109780.0,0.16040603]
[1748244657098,0.66833984,109790.0,109780.0,0.54340972]
[1748244657309,0.68655609,109790.0,109780.0,0.54340972]
[1748244657553,0.51349768,109790.0,109780.0,0.55251843]
[1748244657762,0.36201768,109790.0,109780.0,0.56162697]
[1748244657971,0.49842948,109790.0,109780.0,0.56162697]
[1748244658179,0.5075376,109790.0,109780.0,0.56162697]
[1748244658384,0.48932135,109790.0,109780.0,0.56162697]
[1748244658909,0.49842948,109790.0,109780.0,0.56162697]
[1748244659113,0.49842922,109790.0,109780.0,0.56162697]
[1748244659337,0.50753735,109790.0,109780.0,0.56162697]
[1748244659538,0.49842922,109790.0,109780.0,0.56162697]
[1748244660515,0.50753735,109790.0,109780.0,0.56162697]
[1748244661138,0.49842922,109790.0,109780.0,0.56162697]
[1748244662103,0.48932118,109790.0,109780.0,0.56162697]
[1748244662308,0.44811339,109790.0,109780.0,0.56162697]
[1748244663066,0.45722127,109790.0,109780.0,0.56162697]
[1748244663279,0.44811339,109790.0,109780.0,0.56162697]
[1748244663615,0.4978294,109790.0,109780.0,0.56162697]
[1748244664020,0.52856867,109790.0,109780.0,0.56162697]
[1748244665270,0.5376768,109790.0,109780.0,0.19684136]
[1748244665485,0.71384275,109790.0,109780.0,0.53430076]
[1748244665639,0.70473537,109790.0,109780.0,0.16040603]
[1748244665852,0.70473537,109790.0,109780.0,0.55251901]
[1748244666064,0.70473949,109790.0,109780.0,0.55251901]
[1748244666520,0.69563145,109790.0,109780.0,0.53430076]
[1748244666853,0.68652332,109790.0,109780.0,0.53430076]
[1748244667036,0.68652332,109790.0,109780.0,0.52519164]
[1748244667247,0.68652332,109790.0,109780.0,0.53430076]
[1748244668036,0.68652332,109790.0,109780.0,0.16040603]
[1748244668492,0.68652332,109790.0,109780.0,0.52519164]
[1748244669098,0.68652332,109790.0,109780.0,0.16040603]
[1748244670789,0.68652332,109790.0,109780.0,0.16951515]
[1748244670991,0.54100332,109790.0,109780.0,0.17862419]
[1748244671200,0.68652332,109790.0,109780.0,0.17862419]
[1748244671409,0.68652332,109790.0,109780.0,0.5434098]
[1748244671599,0.68652332,109790.0,109780.0,0.53430076]
[1748244671794,0.69563128,109790.0,109780.0,0.55251859]
[1748244672220,0.69563128,109790.0,109780.0,0.5434098]
[1748244672766,0.68652332,109790.0,109780.0,0.5434098]
[1748244672979,0.67741511,109790.0,109780.0,0.5434098]
[1748244673184,0.67141511,109790.0,109780.0,0.5434098]
[1748244673590,0.64067575,109790.0,109780.0,0.5434098]
[1748244673792,0.64067575,109790.0,109780.0,0.55251876]
[1748244675555,0.64067575,109790.0,109780.0,0.18773315]
[1748244675771,0.64067575,109790.0,109780.0,0.53430076]
[1748244676219,0.64067575,109790.0,109780.0,0.5434098]
[1748244676752,0.49515575,109790.0,109780.0,0.5434098]
[1748244676961,0.64978396,109790.0,109780.0,0.55251859]
[1748244677809,0.64978396,109790.0,109780.0,0.5616273]
[1748244678007,0.64978396,109790.0,109780.0,0.55251859]
[1748244678368,0.64978396,109790.0,109780.0,0.53430076]
[1748244679401,0.68053811,109790.0,109780.0,0.53430076]
[1748244680555,0.68053811,109790.0,109780.0,0.16040603]
[1748244681001,0.67453811,109790.0,109780.0,0.16040603]
[1748244684098,0.70010564,109790.0,109780.0,0.16040603]
[1748244685179,0.71101287,109790.0,109780.0,0.16040603]
[1748244687655,1.16531999,109790.0,109780.0,0.16040603]
[1748244687928,1.07579848,109790.0,109780.0,0.16040603]
[1748244688143,1.44311248,109790.0,109780.0,0.16040603]
[1748244688880,1.44511248,109790.0,109780.0,0.16040603]
[1748244689079,1.43420525,109790.0,109780.0,0.16040603]
[1748244689287,1.43720525,109790.0,109780.0,0.13908665]
[1748244689556,1.43520525,109790.0,109780.0,0.13908665]
[1748244689961,1.43920525,109790.0,109780.0,0.14008665]
[1748244690494,1.4537303,109790.0,109780.0,0.14008665]
[1748244690834,1.7811703,109790.0,109780.0,0.14008665]
[1748244691172,1.7811703,109790.0,109780.0,0.13908665]
[1748244691373,1.7771703,109790.0,109780.0,0.13908665]
[1748244691773,1.79287263,109790.0,109780.0,0.14008665]
[1748244691981,1.88239414,109790.0,109780.0,0.14008665]
[1748244692479,1.87939414,109790.0,109780.0,0.14008665]
[1748244692952,1.87739414,109790.0,109780.0,0.13908665]
[1748244693119,1.88039414,109790.0,109780.0,0.13908665]
[1748244693335,1.88439414,109790.0,109780.0,0.14008665]
[1748244696309,1.28456702,109790.0,109780.0,0.14008665]
[1748244696510,1.79491263,109790.0,109780.0,0.14008665]
[1748244705348,1.7943092,109790.0,109780.0,0.14008665]
[1748244711488,1.42952359,109790.0,109780.0,0.14008665]
[1748244711717,1.7943092,109790.0,109780.0,0.14008665]
[1748244712528,1.77978415,109790.0,109780.0,0.14008665]
[1748244713318,1.86253105,109790.0,109780.0,0.14008665]
[1748244713746,1.77978415,109790.0,109780.0,0.14008665]
[1748244716853,1.78978415,109790.0,109780.0,0.14008665]
[1748244717061,2.20456976,109790.0,109780.0,0.14008665]
[1748244717261,2.19456976,109790.0,109780.0,0.14008665]
[1748244717697,1.82128076,109790.0,109780.0,0.001]
[1748244717900,1.91080227,109790.0,109780.0,0.001]
[1748244718151,2.33019788,109790.0,109780.0,0.001]
[1748244718359,2.27558788,109790.0,109780.0,0.001]
[1748244719532,2.30461422,109790.0,109780.0,0.001]
[1748244720151,0.27745932,109770.0,109760.0,0.002]
[1748244720354,1.26770363,109770.0,109760.0,0.00209085]
[1748244720500,1.26670363,109770.0,109760.0,0.00209085]
[1748244720703,0.92923802,109770.0,109760.0,0.00209085]
[1748244721111,0.92823802,109770.0,109760.0,0.00209085]
[1748244721317,0.92923802,109770.0,109760.0,0.00309085]
[1748244721837,0.20590208,109740.0,109730.0,0.62167351]
[1748244721993,0.61131983,109740.0,109730.0,0.63087734]
[1748244722566,0.61131983,109740.0,109730.0,0.62176432]
[1748244723470,0.61231983,109740.0,109730.0,0.62576432]
[1748244723677,0.60420755,109740.0,109730.0,0.62776432]
[1748244724032,0.61331983,109740.0,109730.0,0.62776432]
[1748244724842,0.59509536,109740.0,109730.0,0.06989089]
[1748244725047,0.95988097,109740.0,109730.0,0.00609089]
[1748244725260,1.02528097,109740.0,109730.0,0.00609089]
[1748244725470,1.39006658,109740.0,109730.0,0.00609089]
[1748244725734,1.02428097,109740.0,109730.0,0.00209089]
[1748244726164,1.02428097,109740.0,109730.0,0.00309089]
[1748244726373,1.05060497,109740.0,109730.0,0.00109089]
[1748244726577,1.06250447,109740.0,109730.0,0.00209089]
[1748244727803,1.0932491,109740.0,109730.0,0.00209089]
[1748244728007,1.0823496,109740.0,109730.0,0.00209089]
[1748244730002,0.71756399,109740.0,109730.0,0.00209089]
[1748244730213,1.0823496,109740.0,109730.0,0.00209089]
[1748244731552,0.71756399,109740.0,109730.0,0.00209089]
[1748244731697,1.0823496,109740.0,109730.0,0.00209089]
[1748244732138,1.17187111,109740.0,109730.0,0.00209089]
[1748244732541,1.54755622,109740.0,109730.0,0.00209089]
[1748244732941,0.18229431,109720.0,109700.0,0.08083062]
[1748244733148,0.42372936,109710.0,109700.0,0.09044392]
[1748244733365,0.42372936,109710.0,109700.0,0.0630977]
[1748244733366,0.60602872,109710.0,109700.0,0.0630977]
[1748244733555,0.61145497,109710.0,109700.0,0.0630977]
[1748244733751,0.97624058,109710.0,109700.0,0.0004977]
[1748244733973,1.40472619,109710.0,109700.0,0.0024977]
[1748244734181,1.03994058,109710.0,109700.0,0.0024977]
[1748244734390,1.05377117,109710.0,109700.0,0.0024977]
[1748244734597,1.41855678,109710.0,109700.0,0.0024977]
[1748244734811,1.75855678,109710.0,109700.0,0.0024977]
[1748244735011,1.78589078,109710.0,109700.0,0.0024977]
[1748244735229,1.78589078,109710.0,109700.0,0.0074977]
[1748244735446,1.79589078,109710.0,109700.0,0.0004977]
[1748244735851,1.79689078,109710.0,109700.0,0.0014977]
[1748244736265,1.07721906,109710.0,109700.0,0.0004977]
[1748244736556,1.89631179,109710.0,109700.0,0.0004977]
[1748244736762,1.89831179,109710.0,109700.0,0.0004977]
[1748244737193,1.17074057,109710.0,109700.0,0.0004977]
[1748244737396,1.90031179,109710.0,109700.0,0.0004977]
[1748244737601,1.89831179,109710.0,109700.0,0.0004977]
[1748244738226,1.16874057,109710.0,109700.0,0.0004977]
[1748244738407,1.83953491,109710.0,109700.0,0.0004977]
[1748244738625,1.83753491,109710.0,109700.0,0.0004977]
[1748244738830,1.84053491,109710.0,109700.0,0.0004977]
[1748244739039,1.84353491,109710.0,109700.0,0.0014977]
[1748244739254,1.93305642,109710.0,109700.0,0.0014977]
[1748244740162,1.97305642,109710.0,109700.0,0.0014977]
[1748244740392,1.92305642,109710.0,109700.0,0.0014977]
[1748244741412,1.92668959,109710.0,109700.0,0.0014977]
[1748244741834,1.92368959,109710.0,109700.0,0.0014977]
[1748244742040,1.92368959,109710.0,109700.0,0.00074187]
[1748244742252,0.20973792,109660.0,109650.0,0.04161976]
[1748244742460,0.6116259,109660.0,109650.0,0.03259127]
[1748244743440,0.6116259,109660.0,109650.0,0.0508307]
[1748244743651,0.08954556,109660.0,109650.0,0.45573573]
[1748244743866,0.39646556,109660.0,109650.0,0.46485507]
[1748244744094,0.41470249,109660.0,109650.0,0.46485507]
[1748244744323,0.42382125,109660.0,109650.0,0.46585507]
[1748244744736,0.41470249,109660.0,109650.0,0.46585507]
[1748244745081,0.42382125,109660.0,109650.0,0.46585507]
[1748244745284,0.42482125,109660.0,109650.0,0.46585507]
[1748244745671,0.44305918,109660.0,109650.0,0.46585507]
[1748244745888,0.60720415,109660.0,109650.0,0.42937688]
[1748244746097,0.60720415,109660.0,109650.0,0.06459127]
[1748244746316,0.60720415,109660.0,109650.0,0.00109127]
[1748244746317,0.61262624,109660.0,109650.0,0.00109127]
[1748244746532,1.08926898,109660.0,109650.0,0.00109127]
[1748244746739,1.01031185,109660.0,109650.0,0.00109127]
[1748244748241,0.64552624,109660.0,109650.0,0.00109127]
[1748244748415,1.04131185,109660.0,109650.0,0.00109127]
[1748244749092,0.67652624,109660.0,109650.0,0.00109127]
[1748244749265,1.04131185,109660.0,109650.0,0.00109127]
[1748244749511,0.67652624,109660.0,109650.0,0.00109127]
[1748244749730,1.04131185,109660.0,109650.0,0.00109127]
[1748244750595,0.97741185,109660.0,109650.0,0.00109127]
[1748244750836,1.01001185,109660.0,109650.0,0.00109127]
[1748244751057,0.61262624,109660.0,109650.0,0.00109127]
[1748244751270,0.61270624,109660.0,109650.0,0.00109127]
[1748244752354,0.61254624,109660.0,109650.0,0.00109127]
[1748244752631,0.30570624,109660.0,109650.0,0.44781631]
[1748244752873,0.39738556,109660.0,109650.0,0.45693565]
[1748244753108,0.41562249,109660.0,109650.0,0.45693565]
[1748244753813,0.09054556,109660.0,109650.0,0.82172126]
[1748244754026,0.39738556,109660.0,109650.0,0.79693565]
[1748244754651,0.09054556,109660.0,109650.0,0.79693565]
[1748244754870,0.39738556,109660.0,109650.0,0.79693565]
[1748244755819,0.39738556,109660.0,109650.0,0.43215004]
[1748244756052,0.39738556,109660.0,109650.0,0.79693565]
[1748244756256,0.39738556,109660.0,109650.0,1.16172126]
[1748244757119,0.39738556,109660.0,109650.0,1.14038049]
[1748244757373,0.39738556,109660.0,109650.0,0.41080927]
[1748244757589,0.39738556,109660.0,109650.0,1.14038049]
[1748244758573,0.09054556,109660.0,109650.0,1.14038049]
[1748244758749,0.001,109660.0,109650.0,1.14138049]
[1748244759017,0.0731228,109700.0,109690.0,0.02734878]
[1748244759260,0.0731228,109700.0,109690.0,0.40423439]
[1748244759261,0.47862338,109700.0,109690.0,0.40423439]
[1748244759467,0.49685399,109700.0,109690.0,0.02734878]
[1748244760124,0.49685391,109700.0,109690.0,0.02734878]
[1748244760348,0.49685391,109700.0,109690.0,0.02744011]
[1748244760582,0.50596951,109700.0,109690.0,0.02744011]
[1748244760809,0.51508519,109700.0,109690.0,0.02744011]
[1748244761049,0.75668616,109700.0,109690.0,9.133e-05]
[1748244761281,1.11778167,109700.0,109690.0,9.133e-05]
[1748244761495,1.12078167,109700.0,109690.0,0.00109133]
[1748244761737,0.75599606,109700.0,109690.0,0.00109133]
[1748244763737,1.12078167,109700.0,109690.0,0.00109133]
[1748244763961,1.04765887,109700.0,109690.0,0.00095302]
[1748244766242,1.07824522,109700.0,109690.0,0.00095302]
[1748244767087,1.1037097,109700.0,109690.0,0.00095302]
[1748244767275,1.4710447,109700.0,109690.0,0.00095302]
[1748244768436,1.48557737,109700.0,109690.0,0.00095302]
[1748244769903,1.33985737,109700.0,109690.0,0.00095302]
[1748244770117,1.48549737,109700.0,109690.0,0.00095302]
[1748244770741,1.4963726,109700.0,109690.0,0.00095302]
[1748244770955,0.56600614,109700.0,109690.0,0.01006962]
[1748244771171,0.64977098,109700.0,109690.0,0.00095302]
[1748244771354,0.1697706,109700.0,109690.0,0.39308741]
[1748244771583,0.1697701,109700.0,109690.0,0.39308741]
[1748244771881,0.49480105,109700.0,109690.0,0.42558741]
[1748244772080,0.53650518,109700.0,109690.0,0.42558741]
[1748244772298,0.52738958,109700.0,109690.0,0.42558741]
[1748244772593,0.5110972,109700.0,109690.0,0.05984878]
[1748244772837,0.5110972,109700.0,109690.0,0.42463439]
[1748244773017,0.49282633,109700.0,109690.0,0.42463439]
[1748244773646,0.51105736,109700.0,109690.0,0.42463439]
[1748244773847,0.50194176,109700.0,109690.0,0.42463439]
[1748244774025,0.51105736,109700.0,109690.0,0.42463439]
[1748244774229,0.46935323,109700.0,109690.0,0.42463439]
[1748244774392,0.46935315,109700.0,109690.0,0.42463439]
[1748244774798,0.46935315,109700.0,109690.0,0.05984878]
[1748244775008,0.46935315,109700.0,109690.0,0.39213439]
[1748244775201,0.46935423,109700.0,109690.0,0.01823277]
[1748244775432,0.46935423,109700.0,109690.0,0.02734895]
[1748244775773,0.4602388,109700.0,109690.0,0.02734895]
[1748244776153,0.44200718,109700.0,109690.0,0.40125057]
[1748244776359,0.46023763,109700.0,109690.0,0.40125057]
[1748244776533,0.46935323,109700.0,109690.0,0.40125057]
[1748244776742,0.46023763,109700.0,109690.0,0.40125057]
[1748244776967,0.12613191,109700.0,109690.0,0.46655057]
[1748244777166,0.44200701,109700.0,109690.0,0.46655057]
[1748244777930,0.43289191,109700.0,109690.0,0.46655057]
[1748244778132,0.44200693,109700.0,109690.0,0.46655057]
[1748244778638,0.45112211,109700.0,109690.0,0.46655057]
[1748244778902,0.43289191,109700.0,109690.0,0.46655057]
[1748244779789,0.40230556,109700.0,109690.0,0.46655057]
[1748244780482,0.25666556,109700.0,109690.0,0.44521631]
[1748244780681,0.25666556,109700.0,109690.0,0.46344908]
[1748244780682,0.40230556,109700.0,109690.0,0.46344908]
[1748244783084,0.09554556,109700.0,109690.0,0.46344908]
[1748244783297,0.40222556,109700.0,109690.0,0.46344908]
[1748244784059,0.39922556,109700.0,109690.0,0.46344908]
[1748244784451,0.39922556,109700.0,109690.0,0.46444908]
[1748244784661,0.39822556,109700.0,109690.0,0.46444908]
[1748244784866,0.40022556,109700.0,109690.0,0.46544908]
[1748244785394,0.40934074,109700.0,109690.0,0.40014908]
[1748244785607,0.42757169,109700.0,109690.0,0.40014908]
[1748244785818,0.41845609,109700.0,109690.0,0.40014908]
[1748244786029,0.66147207,109700.0,109690.0,0.002]
[1748244786252,0.65147207,109700.0,109690.0,0.0111166]
[1748244786490,0.65147207,109700.0,109690.0,0.02023311]
[1748244786694,0.65147207,109700.0,109690.0,0.02934937]
[1748244786905,0.47827244,109700.0,109690.0,0.40325108]
[1748244787115,0.47827177,109700.0,109690.0,0.41236709]
[1748244787764,0.48738745,109700.0,109690.0,0.41236709]
[1748244788190,0.39022556,109700.0,109690.0,0.41236709]
[1748244789073,0.39022556,109700.0,109690.0,0.47536709]
[1748244790120,0.39022556,109700.0,109690.0,0.47547093]
[1748244791676,0.24458556,109700.0,109690.0,0.47547093]
[1748244792096,0.24458556,109700.0,109690.0,0.81547093]
[1748244793082,0.39022556,109700.0,109690.0,0.81547093]
[1748244794065,0.39022556,109700.0,109690.0,0.78547093]
[1748244794998,0.39022556,109700.0,109690.0,0.81847093]
[1748244803058,0.004,109700.0,109690.0,0.81847093]
[1748244804104,0.002,109700.0,109690.0,0.81747093]
[1748244804718,0.003,109700.0,109690.0,0.81947093]
[1748244804925,0.003,109700.0,109690.0,1.18412093]
[1748244805134,0.003,109700.0,109690.0,1.18312093]
[1748244805365,0.001,109700.0,109690.0,1.18312093]
[1748244805554,0.002,109700.0,109690.0,1.18512093]
[1748244805974,0.30264,109710.0,109700.0,0.36734629]
[1748244806148,0.39218556,109710.0,109700.0,0.73223574]
[1748244806350,0.39218556,109710.0,109700.0,1.09686574]
[1748244807137,0.08954556,109710.0,109700.0,1.09686574]
[1748244807323,0.23614556,109710.0,109700.0,1.09786574]
[1748244808092,0.23614556,109710.0,109700.0,1.09886574]
[1748244811555,0.09054556,109710.0,109700.0,1.16186574]
[1748244811750,0.23614556,109710.0,109700.0,1.16186574]
[1748244811956,0.23614556,109710.0,109700.0,1.49558121]
[1748244812167,0.23614556,109710.0,109700.0,1.09877875]
[1748244813021,0.23614556,109710.0,109700.0,1.13117875]
[1748244813222,0.23614556,109710.0,109700.0,1.49598121]
[1748244813852,0.09054556,109710.0,109700.0,1.49598121]
[1748244814062,0.23614556,109710.0,109700.0,1.52818121]
[1748244814384,0.09054556,109710.0,109700.0,1.52818121]
[1748244814629,0.23614556,109710.0,109700.0,0.79857629]
[1748244814831,0.23614556,109710.0,109700.0,1.52818121]
[1748244815454,0.001,109710.0,109700.0,1.52818121]
[1748244816930,0.001,109710.0,109700.0,1.46358121]
[1748244817131,0.09054556,109710.0,109700.0,1.09877875]
[1748244817339,0.09054556,109710.0,109700.0,1.46358121]
[1748244819005,0.001,109710.0,109700.0,1.52618121]
[1748244822361,0.001,109710.0,109700.0,1.46358121]
[1748244823315,0.001,109710.0,109700.0,1.52538121]
[1748244823629,0.001,109710.0,109700.0,1.96748474]
[1748244824017,0.001,109710.0,109700.0,1.93668121]
[1748244824457,0.16088,109720.0,109710.0,0.0273438]
[1748244824772,0.16088,109720.0,109710.0,1.18582702]
[1748244824931,0.16088,109720.0,109710.0,1.18354872]
[1748244825131,0.1476,109730.0,109720.0,0.36734131]
[1748244825343,0.09154556,109730.0,109720.0,1.09670377]
[1748244826367,0.09354556,109730.0,109720.0,1.09770377]
[1748244826564,0.12524556,109730.0,109720.0,1.09770377]
[1748244826824,0.15884556,109730.0,109720.0,1.09870377]
[1748244831783,0.15884556,109730.0,109720.0,0.72478779]
[1748244831993,0.80076568,109730.0,109720.0,0.36656]
[1748244832251,0.73868056,109730.0,109720.0,0.36656]
[1748244832442,0.76420315,109730.0,109720.0,0.36656]
[1748244832646,0.39940069,109730.0,109720.0,0.36656]
[1748244832985,0.42480859,109730.0,109720.0,0.36656]
[1748244833220,0.78961105,109730.0,109720.0,0.36656]
[1748244833998,0.41393336,109730.0,109720.0,0.36656]
[1748244834212,0.41393336,109730.0,109720.0,0.7404764]
[1748244834413,0.72363552,109730.0,109720.0,0.74859017]
[1748244834828,0.71309467,109730.0,109720.0,0.74859017]
[1748244835035,0.52540971,109730.0,109720.0,0.73637228]
[1748244835240,0.52129644,109730.0,109720.0,0.75559941]
[1748244835459,0.52129644,109730.0,109720.0,0.75459941]
[1748244835668,0.52129644,109730.0,109720.0,0.74548589]
[1748244835885,0.52429644,109730.0,109720.0,0.74648589]
[1748244835991,0.52429644,109730.0,109720.0,0.39079695]
[1748244836198,0.51829644,109730.0,109720.0,0.38979695]
[1748244836398,0.51829594,109730.0,109720.0,0.38979695]
[1748244836598,0.513183,109730.0,109720.0,0.75559414]
[1748244836861,0.22972652,109730.0,109720.0,0.75559414]
[1748244837065,0.53620652,109730.0,109720.0,0.75559414]
[1748244837219,0.22972652,109730.0,109720.0,0.75559414]
[1748244837428,0.53620652,109730.0,109720.0,0.75559414]
[1748244839550,0.41002556,109730.0,109720.0,0.75559414]
[1748244840065,0.47202556,109730.0,109720.0,0.75559414]
[1748244840278,0.49936414,109730.0,109720.0,0.37256982]
[1748244840482,0.49025103,109730.0,109720.0,0.38168334]
[1748244840714,0.49025103,109730.0,109720.0,0.74648053]
[1748244840715,0.41002556,109730.0,109720.0,0.74648053]
[1748244841297,0.41002556,109730.0,109720.0,0.5391581]
[1748244841761,0.47132556,109730.0,109720.0,0.5391581]
[1748244842396,0.44072556,109730.0,109720.0,0.5391581]
[1748244842605,0.41002556,109730.0,109720.0,0.5391581]
[1748244843968,0.014,109730.0,109720.0,1.24395529]
[1748244844183,0.014,109730.0,109720.0,1.30765529]
[1748244844399,0.34049621,109750.0,109740.0,0.02733633]
[1748244844634,0.34049621,109750.0,109740.0,0.73441121]
[1748244844841,0.34049621,109750.0,109740.0,1.32528352]
[1748244845049,0.19489621,109750.0,109740.0,1.32528352]
[1748244845259,0.17973621,109750.0,109740.0,0.99228633]
[1748244845677,0.18023416,109750.0,109740.0,1.38948352]
[1748244846913,0.03463416,109750.0,109740.0,1.38948352]
[1748244847149,0.18123416,109750.0,109740.0,1.39148352]
[1748244847354,0.18123416,109750.0,109740.0,2.49525652]
[1748244847527,0.00349795,109750.0,109740.0,2.49525652]
[1748244848730,0.30385795,109760.0,109750.0,0.39213103]
[1748244848926,0.39340351,109760.0,109750.0,0.99456182]
[1748244849673,0.45420351,109760.0,109750.0,0.99456182]
[1748244850022,0.45420351,109760.0,109750.0,0.99856182]
[1748244856005,0.45420351,109760.0,109750.0,0.99826287]
[1748244858376,0.45420351,109760.0,109750.0,0.62459024]
[1748244858614,0.45420351,109760.0,109750.0,1.32908848]
[1748244859962,0.45420351,109760.0,109750.0,1.33845237]
[1748244860671,0.45420351,109760.0,109750.0,1.32908848]
[1748244860877,0.47242383,109760.0,109750.0,1.32908848]
[1748244861215,0.46331363,109760.0,109750.0,1.32908848]
[1748244863374,0.46331363,109760.0,109750.0,0.96459024]
[1748244863583,0.47242383,109760.0,109750.0,1.32908848]
[1748244864146,0.46331363,109760.0,109750.0,1.32908848]
[1748244864345,0.47242383,109760.0,109750.0,1.32908848]
[1748244865524,0.30860351,109760.0,109750.0,1.32908848]
[1748244865725,0.46327355,109760.0,109750.0,1.32908848]
[1748244866523,0.45416351,109760.0,109750.0,1.32908848]
[1748244866729,0.46327355,109760.0,109750.0,1.32908848]
[1748244867346,0.47238375,109760.0,109750.0,1.32908848]
[1748244867969,0.46327355,109760.0,109750.0,1.32908848]
[1748244868821,0.47177521,109760.0,109750.0,1.32908848]
[1748244870010,0.48088549,109760.0,109750.0,1.32908848]
[1748244870222,0.66310123,109760.0,109750.0,0.5972564]
[1748244870433,0.6631019,109760.0,109750.0,0.5972564]
[1748244871034,0.6631019,109760.0,109750.0,0.60636801]
[1748244871236,0.5175419,109760.0,109750.0,0.60636801]
[1748244871445,0.6631019,109760.0,109750.0,0.60636801]
[1748244871646,0.6631019,109760.0,109750.0,0.9799777]
[1748244872083,0.17706821,109760.0,109750.0,0.98908906]
[1748244872294,0.15884722,109760.0,109750.0,1.00731137]
[1748244872500,0.15884722,109760.0,109750.0,1.34731137]
[1748244872702,0.25876722,109760.0,109750.0,1.34731137]
[1748244872904,0.40432722,109760.0,109750.0,1.34731137]
[1748244874941,0.09804722,109760.0,109750.0,1.34731137]
[1748244875148,0.40428722,109760.0,109750.0,1.34731137]
[1748244880400,0.46748722,109760.0,109750.0,1.34731137]
[1748244881265,0.16124722,109760.0,109750.0,1.34731137]
[1748244881421,0.40428722,109760.0,109750.0,1.34731137]
[1748244882023,0.43468722,109760.0,109750.0,1.34731137]
[1748244882196,0.46508722,109760.0,109750.0,1.34731137]
[1748244882972,0.40428722,109760.0,109750.0,1.34731137]
[1748244883181,0.09804722,109760.0,109750.0,1.34731137]
[1748244883385,0.24360722,109760.0,109750.0,1.34731137]
[1748244883752,0.00850166,109760.0,109750.0,2.33871561]
[1748244883957,0.14556,109760.0,109750.0,2.33871561]
[1748244885019,0.14556,109760.0,109750.0,2.33571561]
[1748244885233,0.14556,109760.0,109750.0,2.33971561]
[1748244885807,0.31674994,109770.0,109760.0,0.02733135]
[1748244886007,0.31674994,109770.0,109760.0,0.75860515]
[1748244886008,0.4062955,109770.0,109760.0,0.75860515]
[1748244886215,0.4062955,109770.0,109760.0,1.34941783]
[1748244886416,0.4002955,109770.0,109760.0,1.34941783]
[1748244886837,0.4002955,109770.0,109760.0,0.98491959]
[1748244887219,0.4002955,109770.0,109760.0,0.98591959]
[1748244888305,0.4002955,109770.0,109760.0,0.98691959]
[1748244889242,0.47020479,109770.0,109760.0,0.98691959]
[1748244889398,0.4610955,109770.0,109760.0,0.98691959]
[1748244894560,0.4650555,109770.0,109760.0,0.98691959]
[1748244894992,0.4042555,109770.0,109760.0,0.98691959]
[1748244895214,0.4350555,109770.0,109760.0,0.98691959]
[1748244895413,0.4668555,109770.0,109760.0,0.98691959]
[1748244900484,0.4042555,109770.0,109760.0,1.35141783]
[1748244900701,0.2587355,109770.0,109760.0,1.35141783]
[1748244900924,0.4042555,109770.0,109760.0,1.38301783]
[1748244901610,0.0980555,109770.0,109760.0,1.38301783]
[1748244901854,0.00850994,109770.0,109760.0,4.79179083]
[1748244902313,0.00850994,109770.0,109760.0,5.20309083]
[1748244902790,0.03413621,109790.0,109780.0,0.36732637]
[1748244903011,0.42984177,109790.0,109780.0,1.37808761]
[1748244903229,0.42984177,109790.0,109780.0,1.93814761]
[1748244903472,0.43835105,109790.0,109780.0,1.93814761]
[1748244903687,0.13219105,109790.0,109780.0,1.93814761]
[1748244903953,0.27771105,109790.0,109780.0,1.93814761]
[1748244904195,0.24557484,109790.0,109780.0,1.93814761]
[1748244904393,0.10005484,109790.0,109780.0,1.93814761]
[1748244904576,0.24557484,109790.0,109780.0,1.91478461]
[1748244905257,0.24657484,109790.0,109780.0,1.91478461]
[1748244905861,0.24657484,109790.0,109780.0,1.83068761]
[1748244906758,0.24657484,109790.0,109780.0,1.76540961]
[1748244907767,0.27777484,109790.0,109780.0,1.58504861]
[1748244907934,0.31047484,109790.0,109780.0,1.32484461]
[1748244908492,0.31047484,109790.0,109780.0,1.43890161]
[1748244908685,0.31047484,109790.0,109780.0,1.32484461]
[1748244911602,0.47107484,109790.0,109780.0,1.32484461]
[1748244916780,0.48018247,109790.0,109780.0,0.96034637]
[1748244916987,0.47107484,109790.0,109780.0,1.32484461]
[1748244919816,0.47103484,109790.0,109780.0,1.32484461]
[1748244920052,0.32555484,109790.0,109780.0,1.32484461]
[1748244920288,0.47103484,109790.0,109780.0,1.32484461]
[1748244920525,0.47103484,109790.0,109780.0,1.08970998]
[1748244920762,0.47103484,109790.0,109780.0,0.98484461]
[1748244924147,0.47103484,109790.0,109780.0,2.10205961]
[1748244924351,0.15698928,109790.0,109780.0,2.10205961]
[1748244924565,0.14848,109790.0,109780.0,2.10205961]
[1748244924795,0.003,109790.0,109780.0,2.10205961]
[1748244924998,0.14848,109790.0,109780.0,2.10205961]
[1748244927146,0.14848,109790.0,109780.0,1.97263961]
[1748244929155,0.003,109790.0,109780.0,2.73823785]
[1748244930808,0.002,109790.0,109780.0,2.73823785]
[1748244931154,0.002,109790.0,109780.0,2.73923785]
[1748244931561,0.002,109790.0,109780.0,2.73823785]
[1748244931679,0.002,109790.0,109780.0,2.73923785]
[1748244931899,0.002,109790.0,109780.0,2.74123785]
[1748244932097,0.002,109790.0,109780.0,2.74023785]
[1748244932456,0.002,109790.0,109780.0,2.74323785]
[1748244932627,0.002,109790.0,109780.0,2.75657989]
[1748244934113,0.07020121,109810.0,109800.0,0.02732139]
[1748244934332,0.37624121,109810.0,109800.0,1.35154435]
[1748244934566,0.37624121,109810.0,109800.0,1.34926787]
[1748244934741,0.46578677,109810.0,109800.0,0.98476963]
[1748244934950,0.46578677,109810.0,109800.0,1.34926787]
[1748244935342,0.46778677,109810.0,109800.0,1.34940427]
[1748244935570,0.46878677,109810.0,109800.0,1.34940427]
[1748244938755,0.46878677,109810.0,109800.0,1.35866361]
[1748244939356,0.46878677,109810.0,109800.0,1.69866361]
[1748244943115,0.16274677,109810.0,109800.0,1.69866361]
[1748244943304,0.30822677,109810.0,109800.0,1.69866361]
[1748244950930,0.07320121,109810.0,109800.0,1.69866361]
[1748244951135,0.15698121,109810.0,109800.0,2.27488061]
[1748244951538,0.15698121,109810.0,109800.0,2.20110961]
[1748244953472,0.19018121,109810.0,109800.0,2.20110961]
[1748244954324,0.07660121,109810.0,109800.0,2.20110961]
[1748244954565,0.22208121,109810.0,109800.0,2.20110961]
[1748244954775,0.22208121,109810.0,109800.0,2.03721161]
[1748244955768,0.22208121,109810.0,109800.0,1.87940061]
[1748244956822,0.31162677,109810.0,109800.0,1.69866361]
[1748244957201,0.31162677,109810.0,109800.0,1.79910261]
[1748244957575,0.31162677,109810.0,109800.0,1.69866361]
[1748244958863,0.31162677,109810.0,109800.0,1.83793361]
[1748244959195,0.31162677,109810.0,109800.0,1.69866361]
[1748244965090,0.07660121,109810.0,109800.0,2.63223961]
[1748244965274,0.15698121,109810.0,109800.0,2.63223961]
[1748244965659,0.01150121,109810.0,109800.0,2.63223961]
[1748244966090,0.00950121,109810.0,109800.0,2.63223961]
[1748244966285,0.00850121,109810.0,109800.0,2.63223961]
[1748244966678,0.00850121,109810.0,109800.0,2.63323961]
[1748244966879,0.00850121,109810.0,109800.0,2.46944461]